fUSD/lending_fUSD_20240917
["ID","MTS","AMOUNT","RATE_DAILY","PERIOD"]
[338357128,1726551974045,150.0,0.00025,62]
[338357129,1726551980175,150.0,0.00025,62]
[338357130,1726551980534,150.0,0.00025,62]
[338357131,1726551980882,150.0,0.00025,62]
[338357133,1726552012218,250.0,0.000125,2]
[338357134,1726552041395,400.0,0.000125,4]
[338357135,1726552043499,900.0,0.000126,4]
[338357142,1726552136156,250.0,0.00012343,2]
[338357148,1726552154376,150.091714,0.00026,120]
[338357149,1726552155622,150.091714,0.00026,120]
[338357150,1726552156132,150.091714,0.00026,120]
[338357151,1726552156515,150.091714,0.00026,120]
[338357152,1726552156903,150.091714,0.00026,120]
[338357153,1726552157352,150.091714,0.00026,120]
[338357154,1726552157743,150.091714,0.00026,120]
[338357155,1726552158240,150.091714,0.00026,120]
[338357174,1726552166375,150.091714,0.00026,120]
[338357177,1726552177610,207.32015356,0.00026,120]
[338357179,1726552197572,1170.4,0.00026,120]
[338357194,1726552232299,-1400.0,0.000127,4]
[338357195,1726552232308,-178.39,0.0001274,2]
[338357196,1726552232318,-227.445,0.000128,2]
[338357197,1726552232327,-1900.0,0.000128,4]
[338357198,1726552232336,-280.49,0.00012873,2]
[338357199,1726552232347,-150.0,0.00012877,2]
[338357200,1726552232356,-5139.14267329,0.0001289,2]
[338357201,1726552232371,-1170.27870387,0.0001289,2]
[338357202,1726552232380,-5387.81882977,0.000129,2]
[338357212,1726552232799,-619.14994573,0.000129,2]
[338357213,1726552232819,-503.88900716,0.000129,2]
[338357214,1726552232832,-27033.86321734,0.000129,2]
[338357215,1726552232843,-178.74737907,0.000129,2]
[338357216,1726552232852,-9487.4502,0.000129,2]
[338357217,1726552232863,-5848.0161,0.000129,2]
[338357218,1726552232872,-237.85037377,0.000129,2]
[338357219,1726552232881,-1000.0,0.000129,2]
[338357220,1726552232890,-2400.0,0.000129,4]
[338357221,1726552232899,-499.99,0.000129,2]
[338357222,1726552232909,-1049.3428408,0.000129,2]
[338357223,1726552232919,-178.74232158,0.000129,2]
[338357224,1726552232929,-500.0,0.00012973,2]
[338357225,1726552232939,-500.0,0.00012973,2]
[338357226,1726552232948,-500.0,0.00012973,2]
[338357227,1726552232958,-150.72,0.0001299,2]
[338357228,1726552232969,-502.99554528,0.00012999,2]
[338357229,1726552232979,-156525.70965521,0.00013,2]
[338357230,1726552232991,-1865.69249295,0.00013,2]
[338357231,1726552233003,-5277.06431413,0.00013,2]
[338357232,1726552233014,-505.38615579,0.00013,2]
[338357233,1726552233026,-539.47059194,0.00013,2]
[338357234,1726552233037,-1736.47786761,0.00013,2]
[338357235,1726552233048,-2481.20419989,0.00013,2]
[338357236,1726552233063,-7416.42365056,0.00013,2]
[338357237,1726552233074,-555.90330277,0.00013,2]
[338357238,1726552233086,-771.23460728,0.00013,2]
[338357239,1726552233097,-751.39001507,0.00013,2]
[338357240,1726552233110,-397.37450245,0.00013,2]
[338357241,1726552233123,-1926.93036806,0.00013,2]
[338357242,1726552233135,-298.3,0.00013,2]
[338357243,1726552233150,-2327.20042978,0.00013,2]
[338357244,1726552233166,-480.19262084,0.00013,2]
[338357245,1726552233177,-41572.0975935,0.00013,2]
[338357246,1726552233189,-624185.58170857,0.00013,2]
[338357247,1726552233201,-976.47953325,0.00013,2]
[338357248,1726552233212,-462.57098659,0.00013,2]
[338357249,1726552233224,-2637.74911535,0.00013,2]
[338357250,1726552233236,-3900.0,0.00013,2]
[338357251,1726552233255,-327.85685687,0.00013,2]
[338357252,1726552233266,-904.08234998,0.00013,2]
[338357253,1726552233278,-8969.12578278,0.00013,2]
[338357258,1726552238256,-4577.31606324,0.00013,2]
[338357261,1726552238267,-2580.33695457,0.00013,2]
[338357262,1726552238278,-394.14575585,0.00013,2]
[338357263,1726552238289,-1919.49092263,0.00013,2]
[338357264,1726552238300,-3876.89018452,0.00013,2]
[338357265,1726552238319,-433.07028882,0.00013,2]
[338357266,1726552238330,-689.23568036,0.00013,2]
[338357267,1726552238341,-297.59433797,0.00013,2]
[338357268,1726552238352,-2894.2789726,0.00013,2]
[338357269,1726552238364,-102257.18104227,0.00013,2]
[338357270,1726552238374,-184254.59838916,0.00013,2]
[338357271,1726552238385,-2939.34453431,0.00013,2]
[338357272,1726552238396,-21980.50124176,0.00013,2]
[338357273,1726552238407,-20046.88647575,0.00013,2]
[338357274,1726552238419,-775.61553959,0.00013,2]
[338357275,1726552238439,-3125.7061928,0.00013,2]
[338357276,1726552238450,-435.35854429,0.00013,2]
[338357277,1726552238461,-884.28010879,0.00013,2]
[338357278,1726552238472,-1107.2408442,0.00013,2]
[338357279,1726552238484,-19177.27197511,0.00013,2]
[338357280,1726552238496,-21229.754501,0.00013,2]
[338357281,1726552238509,-965.47893929,0.00013,2]
[338357282,1726552238547,-2171692.3746747,0.00013,2]
[338357283,1726552238557,-1100.0,0.00013,2]
[338357284,1726552238566,-495763.33386797,0.00013,2]
[338357285,1726552238575,-688.55,0.00013,2]
[338357286,1726552238584,-5517.99777711,0.00013,2]
[338357287,1726552238594,-1809.8546,0.00013,2]
[338357288,1726552238603,-166.01132775,0.00013,2]
[338357289,1726552238612,-1809.85461,0.0001307,2]
[338357290,1726552238623,-175.01,0.00013101,2]
[338357292,1726552238631,-1809.85461,0.0001314,2]
[338357293,1726552238640,-1809.85461,0.0001322,2]
[338357294,1726552238649,-1809.85461,0.000133,2]
[338357295,1726552238659,-1809.85461,0.0001338,2]
[338357296,1726552238668,-293.58,0.00013407,2]
[338357297,1726552238677,-4864.19858,0.000135,2]
[338357298,1726552238687,-2836.19809568,0.00013567,2]
[338357300,1726552238698,-2836.19809568,0.00013789,2]
[338357301,1726552238707,-251730.968531,0.000138,2]
[338357302,1726552238716,-211676.109613,0.000139,2]
[338357303,1726552238726,-1049.34284079,0.000139,2]
[338357305,1726552238737,-600.0,0.00013904,2]
[338357307,1726552238748,-188.8,0.00013982,2]
[338357309,1726552238757,-2836.19809568,0.00014011,2]
[338357311,1726552238767,-1000.0,0.00014051,2]
[338357313,1726552238776,-152.0,0.00014224,3]
[338357314,1726552238786,-2836.19809568,0.00014233,2]
[338357316,1726552238796,-5028.76192,0.0001425,2]
[338357318,1726552238805,-500.0,0.00014342,2]
[338357320,1726552238815,-400.0,0.000144,5]
[338357322,1726552238824,-2836.19809568,0.00014456,2]
[338357324,1726552238834,-400.0,0.000145,5]
[338357326,1726552238843,-152.0,0.00014513,4]
[338357328,1726552238853,-400.0,0.000146,5]
[338357330,1726552238863,-2836.19809568,0.00014678,2]
[338357333,1726552238874,-98399.09189507,0.00014689,2]
[338357336,1726552238883,-363.81151898,0.000147,2]
[338357339,1726552238893,-400.0,0.000147,5]
[338357342,1726552238903,-150.0,0.00014743,2]
[338357356,1726552239015,-150.0,0.00014757,2]
[338357359,1726552239047,-150.0,0.00014776,2]
[338357361,1726552239056,-11061.27792029,0.0001478,2]
[338357363,1726552239066,-355.0,0.000148,2]
[338357365,1726552239075,-396.0,0.000148,2]
[338357367,1726552239084,-1300.0,0.000148,5]
[338357368,1726552239093,-152.0,0.00014801,5]
[338357370,1726552239103,-245.23455293,0.00014875,2]
[338357372,1726552239112,-2836.19809568,0.000149,2]
[338357374,1726552239124,-1049.34284079,0.000149,2]
[338357376,1726552239133,-150.0,0.00014909,2]
[338357378,1726552239142,-150.0,0.00014928,2]
[338357380,1726552239151,-150.0,0.00014934,2]
[338357382,1726552239160,-150.0,0.00014964,2]
[338357384,1726552239169,-500.0,0.00014973,2]
[338357386,1726552239179,-201.0,0.0001499,2]
[338357388,1726552239188,-1018.4630714,0.0001499,2]
[338357390,1726552239198,-981.1928365,0.0001499,2]
[338357392,1726552239207,-943.9226017,0.0001499,2]
[338357393,1726552239216,-906.6523668,0.0001499,2]
[338357395,1726552239225,-869.3821319,0.0001499,2]
[338357397,1726552239234,-606.6918447,0.0001499,2]
[338357399,1726552239244,-522.0335988,0.0001499,2]
[338357401,1726552239253,-437.3753529,0.0001499,2]
[338357403,1726552239262,-352.717107,0.0001499,2]
[338357405,1726552239271,-268.0588611,0.0001499,2]
[338357407,1726552239280,-1055.7333063,0.00014998,2]
[338357409,1726552239289,-392.91846683,0.00014998,2]
[338357411,1726552239298,-178.85096945,0.00014999,2]
[338357413,1726552239308,-1521476.32263224,0.00015,2]
[338357415,1726552239319,-764640.13984783,0.00015,2]
[338357417,1726552239330,-1507.57772365,0.00015,2]
[338357419,1726552239341,-2388.94041669,0.00015,2]
[338357422,1726552239353,-3146.7938,0.00015,2]
[338357424,1726552239364,-9777.40127067,0.00015,2]
[338357426,1726552239375,-3211.61472685,0.00015,2]
[338357428,1726552239386,-664.7658,0.00015,2]
[338357430,1726552239397,-10231.82958382,0.00015,2]
[338357432,1726552239408,-1013.63400006,0.00015,2]
[338357434,1726552239419,-1079.19611686,0.00015,2]
[338357436,1726552239431,-1698.03970922,0.00015,2]
[338357439,1726552239442,-25680.41096095,0.00015,2]
[338357441,1726552239452,-1921.64848006,0.00015,2]
[338357526,1726552240233,-1856.99792545,0.00015,2]
[338357529,1726552240244,-1083.32602541,0.00015,2]
[338357531,1726552240255,-312.91,0.00015,2]
[338357533,1726552240265,-828.75769103,0.00015,2]
[338357537,1726552240294,-4600.19544235,0.00015,2]
[338357544,1726552240356,-24530.14252711,0.00015,2]
[338357577,1726552240687,-539.06283141,0.00015,2]
[338357580,1726552240709,-366477.76935272,0.00015,2]
[338357582,1726552240721,-40488.93789105,0.00015,2]
[338357584,1726552240735,-240870.86221839,0.00015,2]
[338357585,1726552240746,-1942.37721319,0.00015,2]
[338357588,1726552240757,-1595.41732748,0.00015,2]
[338357590,1726552240769,-656.14,0.00015,2]
[338357819,1726552243406,-162.14826699,0.000129,2]
[338357821,1726552243416,-1570.12673301,0.00015,2]
[338357824,1726552243429,-1559.45168708,0.00015,2]
[338357826,1726552243441,-273.88727203,0.00015,2]
[338357828,1726552243452,-369.12270208,0.00015,2]
[338357830,1726552243463,-1128.06641355,0.00015,2]
[338357834,1726552243486,-912.45,0.00015,2]
[338357836,1726552243500,-1164.90682513,0.00015,2]
[338357839,1726552243512,-36909.46117305,0.00015,2]
[338357841,1726552243523,-71783.70110887,0.00015,2]
[338357843,1726552243535,-4791.17830158,0.00015,2]
[338357845,1726552243547,-9976.20296932,0.00015,2]
[338357848,1726552243558,-6887.526697,0.00015,2]
[338357850,1726552243573,-382.12258582,0.00015,2]
[338357852,1726552243585,-821.406033,0.00015,2]
[338357855,1726552243596,-1241.55230948,0.00015,2]
[338357857,1726552243609,-585.54,0.00015,2]
[338357859,1726552243620,-16910.57568415,0.00015,2]
[338357873,1726552243801,-937.23420832,0.00015,2]
[338357874,1726552243813,-567.63859501,0.00015,2]
[338357875,1726552243826,-3313.60911296,0.00015,2]
[338357876,1726552243838,-486.18500001,0.00015,2]
[338357877,1726552243853,-1146.82366185,0.00015,2]
[338357878,1726552243871,-503.19150413,0.00015,2]
[338357879,1726552243889,-1283.09584029,0.00015,2]
[338357880,1726552243901,-1509.09021663,0.00015,2]
[338357881,1726552243912,-841.5247125,0.00015,2]
[338357882,1726552243924,-331165.22326537,0.00015,2]
[338357883,1726552243933,-17296.85012817,0.00015,2]
[338357888,1726552244654,-918.3487726,0.00015,2]
[338357889,1726552244673,-10034.08847094,0.00015,2]
[338357890,1726552244686,-5081.85000125,0.00015,2]
[338357891,1726552244701,-1149.07228572,0.00015,2]
[338357892,1726552244712,-16896.2586345,0.00015,2]
[338357893,1726552244723,-367.69336575,0.00015,2]
[338357894,1726552244737,-2927.37522779,0.00015,2]
[338357895,1726552244748,-448.95942964,0.00015,2]
[338357896,1726552244759,-4526.756931,0.00015,2]
[338357897,1726552244772,-361.6920653,0.00015,2]
[338357898,1726552244785,-305.2480904,0.00015,2]
[338357899,1726552244796,-833.87987711,0.00015,2]
[338357900,1726552244809,-1464.06406546,0.00015,2]
[338357901,1726552244820,-1247.37978397,0.00015,2]
[338357902,1726552244835,-757.85641077,0.00015,2]
[338357921,1726552246256,-900.09,0.00015,2]
[338357922,1726552246285,-356.88365472,0.00015,2]
[338357923,1726552246297,-467.5696332,0.00015,2]
[338357924,1726552246308,-450.0,0.00015,2]
[338357925,1726552246319,-898.99522388,0.00015,2]
[338357926,1726552246330,-1095.72969262,0.00015,2]
[338357927,1726552246342,-38080.9092344,0.00015,2]
[338357928,1726552246353,-418.84953567,0.00015,2]
[338357929,1726552246364,-51777.34103376,0.00015,2]
[338357930,1726552246462,-1673.54415866,0.00015,2]
[338357931,1726552246473,-3407.63288819,0.00015,2]
[338357932,1726552246483,-678.81782485,0.00015,2]
[338357933,1726552246494,-11282.35319939,0.00015,2]
[338357934,1726552246506,-2886.749998,0.00015,2]
[338357936,1726552246517,-1222.58142477,0.00015,2]
[338357937,1726552246529,-605.34442089,0.00015,2]
[338357938,1726552246539,-387.7317709,0.00015,2]
[338357939,1726552246551,-321.8,0.00015,2]
[338357940,1726552246564,-5966.55757461,0.00015,2]
[338357941,1726552246575,-283.51720375,0.00015,2]
[338357942,1726552246587,-1494.82037085,0.00015,2]
[338357943,1726552246597,-3600.77568567,0.00015,2]
[338357944,1726552246609,-1346.35809449,0.00015,2]
[338357945,1726552246620,-8027.63642451,0.00015,2]
[338357946,1726552246635,-556.30749995,0.00015,2]
[338357947,1726552246646,-997.32894834,0.00015,2]
[338357948,1726552246657,-1002.08161062,0.00015,2]
[338357949,1726552246669,-277.38,0.00015,2]
[338357950,1726552246681,-923.41189953,0.00015,2]
[338357951,1726552246696,-2009.13156047,0.00015,2]
[338357952,1726552246708,-361.43277495,0.00015,2]
[338357953,1726552246719,-315.74561046,0.00015,2]
[338357956,1726552246733,-1788.63600368,0.00015,2]
[338357958,1726552246744,-3076.63408916,0.00015,2]
[338357960,1726552246755,-631.37538617,0.00015,2]
[338357962,1726552246766,-808.97139607,0.00015,2]
[338357965,1726552246779,-3671.2053238,0.00015,2]
[338357968,1726552246802,-2654.94895016,0.00015,2]
[338357972,1726552301821,4700.0,8.22e-05,2]
[338357973,1726552303413,4700.0,9.59e-05,2]
[338357974,1726552304990,4700.0,0.0001096,2]
[338357975,1726552307011,4700.0,0.0001233,2]
[338357976,1726552399718,303.75,0.00012621,2]
[338357977,1726552406253,2000.0,0.00026,120]
[338357978,1726552424681,155.34,0.00010959,2]
[338357979,1726552426942,500.0,0.00026,120]
[338357980,1726552512990,1050.0,0.00011,2]
[338357981,1726552746073,811.0,0.00026,120]
[338357982,1726552772356,1836.0,0.00026,120]
[338357986,1726553004873,2000.0,0.00026,120]
[338357987,1726553026399,500.0,0.00026,120]
[338357988,1726553144790,288.56,0.00011861,2]
[338357989,1726553165259,333.67,0.00026,120]
[338358019,1726553431663,-1123.4572,0.000129,2]
[338358020,1726553431674,-1560.0905,0.000129,2]
[338358021,1726553431683,-595.6409,0.000129,2]
[338358022,1726553431693,-300.0,0.00012999,2]
[338358023,1726553431703,-697.9,0.00013,2]
[338358024,1726553431712,-150.0,0.00013672,2]
[338358025,1726553431722,-1146.0,0.00013672,2]
[338358026,1726553431731,-3850.90940782,0.00013672,2]
[338358027,1726553431743,-1006.044563,0.00013672,2]
[338358028,1726553431755,-332.75527609,0.00013672,2]
[338358029,1726553431766,-1231.85132041,0.00013672,2]
[338358030,1726553431777,-311.84172578,0.00013672,2]
[338358031,1726553431788,-833.36001832,0.00013672,2]
[338358032,1726553431800,-796.89416303,0.00013672,2]
[338358033,1726553431836,-571.52115498,0.00013672,2]
[338358034,1726553431847,-500.0,0.00013672,2]
[338358035,1726553431859,-4045.82237057,0.00013672,2]
[338358036,1726553431869,-5863.0,0.00013672,2]
[338358037,1726553431879,-1080.0,0.00013672,2]
[338358038,1726553431888,-400.0,0.00013745,2]
[338358039,1726553431898,-1665.33866486,0.00013789,2]
[338358040,1726553431907,-177.42,0.00013789,2]
[338358042,1726553431917,-190.43,0.00013821,2]
[338358043,1726553431926,-250.0,0.00013827,2]
[338358044,1726553431935,-600.0,0.00013832,2]
[338358045,1726553431945,-338.26,0.00013845,2]
[338358046,1726553431955,-15819.91,0.00013864,2]
[338358047,1726553431965,-250.0,0.00013961,2]
[338358048,1726553431975,-1969.3115737,0.00014,4]
[338358049,1726553431984,-499.99,0.00014019,2]
[338358050,1726553431995,-288.56,0.00014125,2]
[338358051,1726553432004,-422.61,0.000142,2]
[338358052,1726553432013,-753.08,0.000142,2]
[338358053,1726553432023,-752.23,0.000142,2]
[338358054,1726553432034,-212.16,0.000142,2]
[338358055,1726553432043,-916.57,0.000142,2]
[338358056,1726553432052,-420.0,0.00014256,2]
[338358057,1726553432062,-150.0,0.00014299,2]
[338358058,1726553432072,-422.61,0.000143,2]
[338358059,1726553432081,-753.08,0.000143,2]
[338358060,1726553432090,-753.08,0.000143,2]
[338358061,1726553432100,-422.61,0.000143,2]
[338358062,1726553432109,-753.08,0.000143,2]
[338358063,1726553432119,-422.61,0.000143,2]
[338358064,1726553432128,-4537.07,0.000145,5]
[338358065,1726553432137,-1500.0,0.00014726,2]
[338358066,1726553432148,-150.0,0.00014728,2]
[338358067,1726553432158,-1500.0,0.00014733,2]
[338358068,1726553432167,-150.0,0.00014733,2]
[338358069,1726553432176,-150.0,0.00014733,2]
[338358070,1726553432185,-1500.0,0.00014734,2]
[338358071,1726553432195,-150.0,0.00014736,2]
[338358072,1726553432208,-487.03368496,0.00014737,2]
[338358073,1726553432217,-150.0,0.00014739,2]
[338358074,1726553432227,-150.0,0.0001474,2]
[338358075,1726553432236,-150.0,0.00014744,2]
[338358076,1726553432246,-150.0,0.00014751,2]
[338358077,1726553432255,-150.0,0.00014756,2]
[338358078,1726553432264,-288.41055394,0.00014773,2]
[338358079,1726553432274,-1500.0,0.00014775,2]
[338358080,1726553432284,-152.82264889,0.00014778,2]
[338358081,1726553432294,-300.0,0.00014778,2]
[338358082,1726553432303,-1589.15194205,0.0001478,2]
[338358083,1726553432312,-150.0,0.00014782,2]
[338358084,1726553432322,-1500.0,0.00014784,2]
[338358085,1726553432331,-1500.0,0.00014787,2]
[338358086,1726553432340,-150.0,0.0001479,2]
[338358087,1726553432353,-150.0,0.00014791,2]
[338358088,1726553432362,-7851.13651746,0.00014792,2]
[338358089,1726553432372,-400.0,0.000148,7]
[338358090,1726553432382,-26701.1524,0.000148,2]
[338358091,1726553432392,-2967.996,0.000148,2]
[338358092,1726553432402,-1357.063,0.000148,2]
[338358093,1726553432412,-150.0,0.000148,2]
[338358094,1726553432421,-7851.13651741,0.00014804,2]
[338358095,1726553432431,-1500.0,0.00014805,2]
[338358096,1726553432440,-150.0,0.00014814,2]
[338358097,1726553432450,-150.0,0.00014814,2]
[338358098,1726553432459,-150.0,0.00014814,2]
[338358099,1726553432468,-1500.0,0.00014815,2]
[338358100,1726553432478,-7851.13651741,0.00014816,2]
[338358101,1726553432487,-150.0,0.0001482,2]
[338358102,1726553432496,-706.62436309,0.00014828,2]
[338358103,1726553432674,-7144.51215432,0.00014828,2]
[338358104,1726553432684,-1500.0,0.00014834,2]
[338358105,1726553432694,-1500.0,0.00014835,2]
[338358106,1726553432703,-3503.63088837,0.0001484,2]
[338358107,1726553432715,-4347.50562904,0.0001484,2]
[338358108,1726553432724,-241.64227,0.0001485,2]
[338358109,1726553432733,-150.0,0.00014851,2]
[338358110,1726553432743,-7851.13651741,0.00014852,2]
[338358111,1726553432752,-150.0,0.00014854,2]
[338358112,1726553432761,-150.0,0.00014858,2]
[338358113,1726553432772,-150.0,0.00014861,2]
[338358114,1726553432783,-150.0,0.00014864,2]
[338358115,1726553432793,-7851.13651741,0.00014864,2]
[338358116,1726553432803,-150.0,0.00014867,2]
[338358117,1726553432812,-150.0,0.00014869,2]
[338358118,1726553432821,-150.0,0.00014869,2]
[338358119,1726553432831,-150.0,0.0001487,2]
[338358120,1726553432840,-7776.89398636,0.00014876,2]
[338358121,1726553432852,-74.24253105,0.00014876,2]
[338358122,1726553432861,-1500.0,0.00014883,2]
[338358123,1726553432870,-140.48358673,0.00014883,2]
[338358125,1726553437520,-9.51641327,0.00014883,2]
[338358126,1726553437531,-150.0,0.00014888,2]
[338358127,1726553437542,-5287.676146,0.00014888,2]
[338358128,1726553437554,-303.16003,0.00014888,2]
[338358129,1726553437566,-315.0,0.00014888,2]
[338358130,1726553437577,-430.48305069,0.00014888,2]
[338358131,1726553437589,-1514.81729072,0.00014888,2]
[338358132,1726553437599,-202.81817626,0.0001489,2]
[338358133,1726553437609,-441.51245619,0.0001489,2]
[338358134,1726553437621,-1675.99414381,0.0001489,2]
[338358135,1726553437631,-475.3993,0.0001489,2]
[338358136,1726553437640,-1000.0,0.0001489,2]
[338358137,1726553437650,-6031.2183,0.0001489,2]
[338358138,1726553437660,-7326.32048616,0.0001489,2]
[338358139,1726553437675,-315.29410803,0.0001489,2]
[338358140,1726553437687,-2076.34305428,0.0001489,2]
[338358141,1726553437818,-19066.24339577,0.0001489,2]
[338358142,1726553437830,-703.20536157,0.0001489,2]
[338358143,1726553437842,-1363.28313491,0.0001489,2]
[338358144,1726553437854,-9901.91955928,0.0001489,2]
[338358145,1726553437864,-14327.8718,0.0001489,2]
[338358146,1726553437873,-202.81817622,0.00014891,2]
[338358147,1726553437883,-150.0,0.00014892,2]
[338358148,1726553437893,-202.81817622,0.00014893,2]
[338358149,1726553437903,-150.0,0.00014894,2]
[338358150,1726553437913,-150.0,0.00014894,2]
[338358151,1726553437922,-202.81817622,0.00014894,2]
[338358152,1726553437932,-202.81817622,0.00014896,2]
[338358153,1726553437941,-202.81817622,0.00014897,2]
[338358154,1726553437955,-202.81817622,0.00014899,2]
[338358155,1726553437965,-4546.94216423,0.000149,2]
[338358156,1726553437975,-1302.419,0.000149,2]
[338358157,1726553438252,-272.8281,0.000149,2]
[338358158,1726553438262,-339.7032,0.000149,2]
[338358159,1726553438272,-159.89920306,0.000149,2]
[338358160,1726553438281,-158.56691586,0.000149,2]
[338358161,1726553438291,-7851.13651741,0.000149,2]
[338358162,1726553438300,-324.32883755,0.000149,2]
[338358163,1726553438310,-202.81817622,0.000149,2]
[338358164,1726553438319,-595.53727347,0.000149,2]
[338358165,1726553438329,-1000.0,0.000149,2]
[338358166,1726553438338,-150.0,0.00014914,2]
[338358167,1726553438348,-150.0,0.00014914,2]
[338358168,1726553438358,-150.0,0.00014915,2]
[338358169,1726553438368,-1500.0,0.00014916,2]
[338358170,1726553438377,-150.0,0.00014917,2]
[338358171,1726553438387,-150.0,0.00014919,2]
[338358172,1726553438396,-150.0,0.00014926,2]
[338358173,1726553438406,-1500.0,0.00014928,2]
[338358174,1726553438418,-1500.0,0.00014928,2]
[338358175,1726553438427,-150.0,0.00014929,2]
[338358176,1726553438436,-150.0,0.00014932,2]
[338358177,1726553438445,-150.0,0.00014935,2]
[338358178,1726553438455,-150.0,0.00014941,2]
[338358179,1726553438465,-150.0,0.00014943,2]
[338358180,1726553438475,-167.614,0.00014944,2]
[338358181,1726553438486,-1500.0,0.00014957,2]
[338358182,1726553438497,-150.0,0.00014957,2]
[338358183,1726553438508,-1500.0,0.00014972,2]
[338358184,1726553438519,-371.99471297,0.00014973,2]
[338358185,1726553438529,-500.0,0.00014973,2]
[338358186,1726553438539,-500.0,0.00014973,2]
[338358187,1726553438548,-150.72,0.0001498,2]
[338358188,1726553438558,-1500.0,0.00014984,2]
[338358189,1726553438568,-1500.0,0.00014985,2]
[338358190,1726553438578,-625.13053005,0.00014989,2]
[338358191,1726553438589,-201.0,0.0001499,2]
[338358192,1726553438599,-201.0,0.0001499,2]
[338358193,1726553438609,-150.0,0.0001499,2]
[338358194,1726553438620,-9736.38724401,0.0001499,2]
[338358195,1726553438672,-56478.55312075,0.0001499,2]
[338358196,1726553438684,-930.05753041,0.0001499,2]
[338358197,1726553438752,-570.55999995,0.0001499,2]
[338358198,1726553438764,-1109.20886868,0.0001499,2]
[338358199,1726553438775,-32746.96650748,0.0001499,2]
[338358200,1726553438787,-740.34726879,0.0001499,2]
[338358201,1726553438806,-23406.47410261,0.0001499,2]
[338358202,1726553438818,-1954.87549614,0.0001499,2]
[338358203,1726553438829,-3006.23284698,0.0001499,2]
[338358204,1726553438840,-12680.68088358,0.0001499,2]
[338358205,1726553438851,-27428.65124824,0.0001499,2]
[338358207,1726553439559,-1225.9364753,0.0001499,2]
[338358208,1726553439571,-1548.34307602,0.0001499,2]
[338358209,1726553439584,-794.98073637,0.0001499,2]
[338358210,1726553439595,-377.63072068,0.0001499,2]
[338358211,1726553439607,-649.02,0.0001499,2]
[338358212,1726553439618,-583.86285183,0.0001499,2]
[338358213,1726553439630,-923.08443828,0.0001499,2]
[338358214,1726553439641,-1103.41846136,0.0001499,2]
[338358215,1726553439653,-1174.7792589,0.0001499,2]
[338358216,1726553439665,-1660.60711053,0.0001499,2]
[338358217,1726553439677,-1608.91586877,0.0001499,2]
[338358218,1726553439688,-3088.79959943,0.0001499,2]
[338358219,1726553439703,-41974.96638891,0.0001499,2]
[338358220,1726553439713,-95110.94375252,0.0001499,2]
[338358221,1726553439725,-2409.35153101,0.0001499,2]
[338358222,1726553439736,-576.99,0.0001499,2]
[338358223,1726553439761,-5159.35355247,0.0001499,2]
[338358224,1726553439770,-216.11050361,0.00014998,2]
[338358225,1726553439780,-691.3500909,0.00014998,2]
[338358226,1726553439790,-1236.54188667,0.00014999,2]
[338358227,1726553439799,-511.495558,0.00014999,2]
[338358228,1726553439809,-511.495558,0.00014999,2]
[338358229,1726553439819,-511.495558,0.00014999,2]
[338358230,1726553439828,-511.495558,0.00014999,2]
[338358231,1726553439838,-511.495558,0.00014999,2]
[338358232,1726553439847,-511.495558,0.00014999,2]
[338358234,1726553439857,-511.495558,0.00014999,2]
[338358236,1726553439867,-511.495558,0.00014999,2]
[338358238,1726553439876,-511.495558,0.00014999,2]
[338358240,1726553439886,-511.495558,0.00014999,2]
[338358241,1726553439896,-511.495558,0.00014999,2]
[338358242,1726553439906,-511.495558,0.00014999,2]